Cogmind - Beta 10.2 @@@ ROGUE MODE // 2021.08.06 @ 22:20:31 Player: Cypher Result: Destroyed by S-10 Pest with Light Assault Rifle Performance ------------- Evolutions (1) 500 Regions Visited (6) 1200 Robots Destroyed (33) 165 Value Destroyed (591) 591 Prototype IDs (1) 20 Alien Tech Used (0) 0 Bonus (-470) -470 TOTAL SCORE: 2006 Bonus ------- Follower Combat Kills 25 Friendly Fire -495 Cogmind --------- Core Integrity 0/400 Matter 197/300 Energy 68/100 System Corruption 0% Temperature Cool (36) Movement Walking (120) Location -8/Mines Parts ------- > --- POWER (1) -------- (None) > --- PROPULSION (2) --- Carbon-fiber Leg Carbon-fiber Leg > --- UTILITY (4) ------ Medium Storage Unit Medium Storage Unit Makeshift Terrain Scanner Targeting Computer > --- WEAPON (2) ------- Shock Rifle > --- INVENTORY (12) --- Compact Wheel Improved Heat Sink Small Storage Unit High-capacity Matter Pod (78) Makeshift Cloaking Device Sensor Drone Bay (20/20) Peak State ------------ > --- POWER ------------ Light Angular Momentum Engine > --- PROPULSION ------- Carbon-fiber Leg Carbon-fiber Leg > --- UTILITY ---------- Medium Storage Unit Medium Storage Unit Makeshift Terrain Scanner Targeting Computer > --- WEAPON ----------- Shock Rifle Small Laser > --- INVENTORY -------- Carbon-fiber Leg Compact Wheel Improved Heat Sink Small Storage Unit High-capacity Matter Pod Makeshift Cloaking Device Sensor Drone Bay [Rating: 24] Favorites ----------- Power Light Ion Engine Engine Light Ion Engine Power Core Light Nuclear Core Propulsion Carbon-fiber Leg Treads Light Treads Leg Carbon-fiber Leg Wheel Compact Wheel Utility Targeting Computer Device Makeshift Terrain Scanner Storage Medium Storage Unit Processor Targeting Computer Protection Hardened Light Armor Plating Weapon Small Laser Energy Gun Small Laser Ballistic Gun Heavy Assault Rifle Launcher Grenade Launcher Build | -11 -10 -10 -9 -9 -9 -8 ------- Run | Scr Mat Min Mat Min Exi Min Slots Evolved 2 | . . . 2 . . . Power . | . . . . . . . Propulsion . | . . . . . . . Utility 2 | . . . 2 . . . Weapon . | . . . . . . . Parts Attached 54 | 7 16 9 7 4 10 1 Power 7 | 1 2 2 1 . 1 . Engine 6 | 1 2 1 1 . 1 . Core 1 | . . 1 . . . . Reactor . | . . . . . . . Propulsion 19 | 2 8 3 1 1 3 1 Treads 7 | . 4 2 1 . . . Leg 4 | . . . . . 3 1 Wheel 8 | 2 4 1 . 1 . . Hover . | . . . . . . . Flight . | . . . . . . . Utility 12 | 2 1 . 3 2 4 . Device 4 | 1 . . . 2 1 . Storage 4 | 1 . . 1 . 2 . Processor 2 | . 1 . . . 1 . Hackware . | . . . . . . . Protection 2 | . . . 2 . . . Artifact . | . . . . . . . Weapon 16 | 2 5 4 2 1 2 . Energy Gun 5 | 2 . 1 . 1 1 . Energy Cannon . | . . . . . . . Ballistic Gun 7 | . 5 . 1 . 1 . Ballistic Cannon . | . . . . . . . Launcher 4 | . . 3 1 . . . Special Weapon . | . . . . . . . Impact Weapon . | . . . . . . . Slashing Weapon . | . . . . . . . Piercing Weapon . | . . . . . . . Special Melee Weapon . | . . . . . . . Unidentified Prototypes 1 | . . . . 1 . . Parts Lost 20 | . 3 10 3 . 1 3 Power 5 | . 2 2 . . . 1 Propulsion 6 | . . 4 1 . . 1 Utility . | . . . . . . . Weapon 9 | . 1 4 2 . 1 1 Highest Loss Streak 7 | . 2 7 3 . 1 3 Average Slot Usage (%) 71 | . 99 89 42 21 70 88 Engine 4 | . 13 7 4 . 1 11 Treads 3 | . 7 7 7 . . . Leg 8 | . . . . . 16 22 Wheel 8 | . 20 19 . 4 2 . Device 5 | . . . . . 9 11 Storage 13 | . 14 14 4 . 16 22 Processor 11 | . 13 14 11 11 11 11 Energy Gun 7 | . 4 . . 5 12 11 Ballistic Gun 7 | . 22 18 8 . . . Naked Turns . | . . . . . . . Heaviest Build 30 | 14 14 15 16 1 30 20 Greatest Support 40 | 26 40 40 20 3 30 30 Greatest Overweight (x) 4 | . . 1 4 . 3 . Average Overweight (x) . | . . . . . . . Largest Inventory Capacity 12 | 6 6 6 6 4 12 12 Average Capacity 7 | 5 6 6 4 4 10 12 Most Carried 7 | 5 6 6 4 4 7 7 Average Carried 4 | 3 5 4 2 3 5 6 Final Capacity 12 | 6 6 6 4 4 12 12 Final Carried 7 | 5 6 2 4 3 7 6 Class Distribution -------------------- 71% | Mutant 28% | Scavenger-Mutant Dominant Class ---------------- Mutant | -10/Materials Mutant | -10/Mines Mutant | -9/Materials Mutant | -9/Mines Scavenger-Mutant | -9/Exiles Scavenger-Mutant | -8/Mines Resources | -11 -10 -10 -9 -9 -9 -8 ----------- Run | Scr Mat Min Mat Min Exi Min Matter Collected 1023 | 260 203 263 31 54 192 20 Remotely . | . . . . . . . Salvage Created 1378 | 175 491 211 127 54 288 32 Parts 91 | 9 39 8 16 3 14 2 Haulers Intercepted 1 | . 1 . . . . . Recyclers Shooed 1 | . . 1 . . . . Parts Field Recycled . | . . . . . . . Retrieved Matter . | . . . . . . . Parts Self-Destructed . | . . . . . . . Prevented . | . . . . . . . Kills | -11 -10 -10 -9 -9 -9 -8 ------- Run | Scr Mat Min Mat Min Exi Min Combat Hostiles Destroyed 26 | . 9 10 5 . . 2 Melee 1 | . . . 1 . . . Guns 13 | . 9 1 1 . . 2 AOE 12 | . . 9 3 . . . Classes Destroyed 10 | 2 5 2 1 . . . Worker 1 | . . 1 . . . . Tunneler 3 | 3 . . . . . . Hauler 1 | . 1 . . . . . Recycler 4 | 1 1 1 . 1 . . Operator 1 | . 1 . . . . . Watcher 4 | . 3 . 1 . . . Swarmer 8 | . 3 . 3 . . 2 Grunt 10 | . 6 1 1 . 2 . Sentry 1 | . . . 1 . . . Assembled 9 | . . 9 . . . . Best Kill Streak 9 | 4 9 5 5 1 . 2 Combat Bots Only 7 | . 7 5 4 . . 2 Max Kills in Single Turn 2 | 1 1 2 2 1 2 1 Gunslinging . | . . . . . . . Exploded 2 | . . 2 2 . . . Melee 1 | . . . 1 . . . Uniques/NPCs Destroyed . | . . . . . . . Combat | -11 -10 -10 -9 -9 -9 -8 -------- Run | Scr Mat Min Mat Min Exi Min Damage Taken 2471 | . 480 870 671 21 195 234 Core 644 | . 98 143 245 14 110 34 Absorbed by Shields . | . . . . . . . Core Remaining (%) 51 | 100 . 3 . . . . Volleys Fired 172 | 8 31 20 21 4 78 10 Largest 2 | 2 2 2 2 1 2 2 Hottest 90 | 90 90 68 53 40 68 90 Shots Fired 241 | 16 62 37 24 4 86 12 Gun 229 | 16 62 28 21 4 86 12 Cannon . | . . . . . . . Launcher 12 | . . 9 3 . . . Special . | . . . . . . . Kinetic 99 | . 46 24 21 . 8 . Thermal 103 | 8 11 . . 4 78 2 Explosive 12 | . . 9 3 . . . Electromagnetic 27 | 8 5 4 . . . 10 Robot Hit Streak 19 | 13 16 7 8 5 19 3 Robot Miss Streak 3 | 1 2 2 2 . 3 1 Penetration Max . | . . . . . . . Secondary Targets 1 | . 1 . . . . . Max Gunslinging Chain 1 | . 1 . . . . . Shots Hit Robots 140 | 13 41 26 15 4 33 8 Core Hits 86 | 5 20 26 14 2 17 2 Critical Hits 1 | . . 1 . . . . Critical Kills . | . . . . . . . Critical Parts Destroyed 1 | . . 1 . . . . Melee Attacks . | . . . . . . . Impact . | . . . . . . . Slashing . | . . . . . . . Piercing . | . . . . . . . Sneak Attacks . | . . . . . . . Combat Hostiles . | . . . . . . . Follow-up Attacks . | . . . . . . . Damage Inflicted 2865 | 171 517 934 419 43 668 113 Guns 1709 | 171 517 261 194 43 410 113 Cannons . | . . . . . . . Explosions 1141 | . . 673 210 . 258 . Melee . | . . . . . . . Ramming 15 | . . . 15 . . . Kinetic 768 | . 369 205 194 . . . Thermal 899 | 76 99 . . 43 668 13 Explosive 883 | . . 673 210 . . . Electromagnetic 300 | 95 49 56 . . . 100 Impact . | . . . . . . . Slashing . | . . . . . . . Piercing . | . . . . . . . Highest Corruption 1 | . . 1 . . . . Average Corruption 1 | . . 1 . . . . Corruption Purged . | . . . . . . . Overload Shots . | . . . . . . . Overflow Damage 100 | . . 31 23 . 46 . Projectiles . | . . . . . . . Explosions 100 | . . 31 23 . 46 . Melee . | . . . . . . . Knockbacks . | . . . . . . . Impact . | . . . . . . . Kinetic . | . . . . . . . Secondary . | . . . . . . . Self-Inflicted Damage 373 | . . 139 39 . 195 . Shots 9 | . . 6 1 . 2 . Rammed 3 | . . . 3 . . . Targets Rammed 3 | . . . 3 . . . Kicked . | . . . . . . . Crushed . | . . . . . . . Highest Temperature 222 | 150 222 41 54 . 34 102 Average Temperature 71 | 65 109 18 30 . 28 63 Received Heat Transfer 581 | . 225 116 240 . . . Siege Activations . | . . . . . . . Robots Corrupted . | . . . . . . . Combat Hostiles . | . . . . . . . Parts Fried . | . . . . . . . Impact Corruptions . | . . . . . . . Robots Melted . | . . . . . . . Combat Hostiles . | . . . . . . . Parts Melted 1 | 1 . . . . . . Heat Transferred 1758 | 222 296 . . 100 1115 25 Parts Sabotaged . | . . . . . . . Parts Stolen . | . . . . . . . Parts Stripped . | . . . . . . . Power Chain Reactions . | . . . . . . . Missiles Intercepted . | . . . . . . . Alert | -11 -10 -10 -9 -9 -9 -8 ------- Run | Scr Mat Min Mat Min Exi Min Peak Influence 247 | 20 146 109 247 191 . 45 Initial 96 | . 13 46 . 96 . . Average 66 | 6 61 57 81 102 . 26 Maximum Alert Level 1 | . . . 1 . . . Low Security (%) 98 | 100 100 100 88 100 . 100 Level 1 1 | . . . 11 . . . Level 2 . | . . . . . . . Level 3 . | . . . . . . . Level 4 . | . . . . . . . Level 5 . | . . . . . . . High Security . | . . . . . . . Max Security . | . . . . . . . Squads Dispatched 3 | . 3 . . . . . Investigation 1 | . 1 . . . . . Extermination . | . . . . . . . Reinforcement 2 | . 2 . . . . . Assault . | . . . . . . . Garrison . | . . . . . . . Intercept . | . . . . . . . Construction Impeded . | . . . . . . . Haulers Reinforced . | . . . . . . . Stealth | -11 -10 -10 -9 -9 -9 -8 --------- Run | Scr Mat Min Mat Min Exi Min Distress Signals 1 | . . . 1 . . . Communications Jammed . | . . . . . . . Distress Signals . | . . . . . . . Times Spotted 63 | . 17 19 17 6 . 4 Peak Tracking Total 10 | . 6 9 10 4 . 4 Tactical Retreats 4 | . 1 2 . 1 . . Traps | -11 -10 -10 -9 -9 -9 -8 ------- Run | Scr Mat Min Mat Min Exi Min Traps Triggered 1 | . 1 . . . . . Indirectly . | . . . . . . . Trap Hack Attempts . | . . . . . . . Triggered . | . . . . . . . Disarmed . | . . . . . . . Reprogrammed . | . . . . . . . Reused . | . . . . . . . Traps Extracted . | . . . . . . . Installed . | . . . . . . . Triggered . | . . . . . . . Machines | -11 -10 -10 -9 -9 -9 -8 ---------- Run | Scr Mat Min Mat Min Exi Min Machines Disabled 4 | . 1 . 3 . . . Max in Single Turn 2 | . 1 . 2 . . . Machines Sabotaged . | . . . . . . . Garrisons Compromised . | . . . . . . . Overloaded Fab Kills . | . . . . . . . Fab Network Shutdowns . | . . . . . . . Hacking | -11 -10 -10 -9 -9 -9 -8 --------- Run | Scr Mat Min Mat Min Exi Min Machines Accessed 9 | . 4 . 3 1 1 . Terminals 7 | . 4 . 3 . . . Fabricators . | . . . . . . . Repair Stations . | . . . . . . . Recycling Units . | . . . . . . . Scanalyzers . | . . . . . . . Garrison Access . | . . . . . . . Total Hacks 29 | . 19 . 8 1 1 . Successful 19 | . 11 . 6 1 1 . Failed 10 | . 8 . 2 . . . Catastrophic 1 | . 1 . . . . . Database Lockouts . | . . . . . . . Manual 18 | . 12 . 5 . 1 . Terminals 27 | . 19 . 8 . . . Fabricators . | . . . . . . . Repair Stations . | . . . . . . . Recycling Units . | . . . . . . . Scanalyzers . | . . . . . . . Garrison Access . | . . . . . . . Terminal Hacks 13 | . 8 . 3 1 1 . Record 2 | . 1 . . . 1 . Robot Analysis 3 | . 3 . . . . . Open Door 1 | . . . . 1 . . Branch Access Points 1 | . . . 1 . . . Unreport Threat 1 | . 1 . . . . . Locate Traps 2 | . 1 . 1 . . . Reinforcement Status 1 | . 1 . . . . . Recall Reinforcements 1 | . 1 . . . . . Zone Layout 1 | . . . 1 . . . Fabricator Hacks . | . . . . . . . Repair Station Hacks . | . . . . . . . Recycling Unit Hacks . | . . . . . . . Scanalyzer . | . . . . . . . Garrison Access Hacks . | . . . . . . . Unauthorized Hacks 6 | . 3 . 3 . . . Terminals 6 | . 3 . 3 . . . Assimilate 1 | . 1 . . . . . Botnet 4 | . 2 . 2 . . . Disrupt 1 | . . . 1 . . . Fabricators . | . . . . . . . Repair Stations . | . . . . . . . Recycling Units . | . . . . . . . Scanalyzers . | . . . . . . . Garrison Access . | . . . . . . . Data Cores Recovered . | . . . . . . . Used . | . . . . . . . Hacking Detections 6 | . 4 . 2 . . . Full Trace Events . | . . . . . . . Feedback Events . | . . . . . . . Feedback Blocked . | . . . . . . . Robot Schematics Acquired . | . . . . . . . Robots Built . | . . . . . . . Matter . | . . . . . . . Time . | . . . . . . . Total Robot Build Rating . | . . . . . . . Part Schematics Acquired . | . . . . . . . Parts Built . | . . . . . . . Matter . | . . . . . . . Time . | . . . . . . . Total Part Build Rating . | . . . . . . . Parts Repaired . | . . . . . . . Time . | . . . . . . . Parts Recycled . | . . . . . . . Recycled Matter . | . . . . . . . Retrieved Matter . | . . . . . . . Retrieved Components . | . . . . . . . Parts Scanalyzed . | . . . . . . . Part Schematics Acquired . | . . . . . . . Parts Damaged . | . . . . . . . Bothacking | -11 -10 -10 -9 -9 -9 -8 ------------ Run | Scr Mat Min Mat Min Exi Min Used RIF Installer . | . . . . . . . Robots Hacked . | . . . . . . . Non-combat . | . . . . . . . Combat . | . . . . . . . Robot Hacks Applied . | . . . . . . . Relay Couplers Released . | . . . . . . . Robots Rewired 2 | . . . . . 2 . Allies Hacked . | . . . . . . . Hacks Repelled . | . . . . . . . Allies | -11 -10 -10 -9 -9 -9 -8 -------- Run | Scr Mat Min Mat Min Exi Min Total Allies 3 | . . 1 . . 2 . Largest Group 2 | . . 1 . . 2 . Highest-Rated Group 31 | . . 31 . . 16 . Highest-Rated Ally 31 | . . 31 . . 8 . Total Orders . | . . . . . . . Ally Attacks 6 | . . 6 . . . . Total Damage 43 | . . 43 . . . . Kills 1 | . . 1 . . . . Allies Corrupted . | . . . . . . . Allies Melted . | . . . . . . . Intel | -11 -10 -10 -9 -9 -9 -8 ------- Run | Scr Mat Min Mat Min Exi Min Robot Analysis Total 3 | . 3 . . . . . Derelict Logs Recovered 1 | . . . . 1 . . Drone Launches . | . . . . . . . Drone Recoveries . | . . . . . . . Exploration | -11 -10 -10 -9 -9 -9 -8 ------------- Run | Scr Mat Min Mat Min Exi Min Turns Passed 2228 | 81 465 201 190 193 1074 24 Spaces Moved 2014 | 46 331 135 147 332 1022 1 Core 989 | 1 . 10 146 332 500 . Treads 61 | . 37 23 1 . . . Legs 512 | . . . . . 511 1 Wheels 452 | 45 294 102 . . 11 . Hover . | . . . . . . . Flight . | . . . . . . . Fastest Speed 50 | 50 90 80 50 50 50 120 Average Speed 82 | 88 97 96 80 50 85 120 Slowest Speed 250 | 90 160 160 250 50 200 120 Overloaded Moves . | . . . . . . . Propulsion Burnouts . | . . . . . . . Robots Hopped . | . . . . . . . Cave-ins Triggered . | . . . . . . . Exploration Rate (%) 39 | 5 73 25 17 58 94 2 Regions Visited 6 Branch Regions 4 Pre-discovered Areas 1 | . . . . . 1 . Known Exits Taken 1 | . . . 1 . . . Unknown Exits Taken 5 | 1 1 1 . 1 1 . Scrap Searched . | . . . . . . . Spaces Dug . | . . . . . . . Terrain Destroyed 141 | . . 56 9 . 76 . Melee . | . . . . . . . Projectile . | . . . . . . . AOE 141 | . . 56 9 . 76 . Terrain Rammed . | . . . . . . . Walls Destroyed . | . . . . . . . Machines Disabled . | . . . . . . . Actions | -11 -10 -10 -9 -9 -9 -8 --------- Run | Scr Mat Min Mat Min Exi Min Total 2330 | 66 408 168 194 354 1128 12 Wait 44 | 1 16 3 10 12 2 . Move 2008 | 45 330 134 146 331 1021 1 Hop . | . . . . . . . Pick Up 16 | 5 6 . 2 . 3 . Fast Attach 27 | 7 5 2 3 2 8 . Attach 13 | . 2 4 4 2 . 1 Detach 8 | . 1 . 4 2 1 . Swap 14 | . 9 3 . . 2 . Drop 12 | . 8 2 1 1 . . Fire 172 | 8 31 20 21 4 78 10 Melee . | . . . . . . . Ram 3 | . . . 3 . . . Kick . | . . . . . . . Crush . | . . . . . . . Escape Stasis . | . . . . . . . Rewire 13 | . . . . . 13 . Trap . | . . . . . . . Miscellaneous . | . . . . . . . Route ------- -11/Scrapyard -10/Materials (discovered 3 exits: *Mat x2 / [*Min]) -10/Mines -9/Materials (discovered 2 exits: *Min x2) -9/Mines (discovered 2 exits: [*Mat] / *Exi) -9/Exiles (discovered 2 exits: [*Min x2]) -8/Mines History --------- Turn | Location | Event 34 | -11/Scrapyard | Discovered new exit (range 16) 82 | -11/Scrapyard | Entered Materials 283 | -10/Materials | Discovered new exit (range 11) 342 | -10/Materials | Build established: Mutant 413 | -10/Materials | Discovered new exit (range 9) 530 | -10/Materials | Discovered new exit (range 15) 545 | -10/Materials | Destroyed 7 combat bots 547 | -10/Materials | Entered Mines 612 | -10/Mines | Received a Mining Laser from a helpful Derelict 615 | -10/Mines | Core integrity fell below 50% 650 | -10/Mines | Assembled infested the area 655 | -10/Mines | Assisted by a Guerilla fighting off Assembled 695 | -10/Mines | Core integrity fell below 20% 729 | -10/Mines | Lost 7 parts (2p2n3w) 740 | -10/Mines | Discovered new exit (range 10) 748 | -10/Mines | Entered Materials 748 | -9/Materials | Evolved 2 slots: Utility x2 769 | -9/Materials | Lost 3 parts (2n1w) 808 | -9/Materials | Identified exit to Mines 934 | -9/Materials | Core integrity fell below 50% 938 | -9/Materials | Entered Mines 941 | -9/Mines | Found the Drone Emporium 943 | -9/Mines | Found Prototype Device 943 | -9/Mines | Identified Sensor Drone Bay 954 | -9/Mines | Lost 3 parts (1n2w) 977 | -9/Mines | Deemed a non-threat by the Exiles lab entrance 978 | -9/Mines | Discovered new exit (range 5) 1033 | -9/Mines | Learned location of 1 exit from Materials 1054 | -9/Mines | Discovered new exit (range 11) 1131 | -9/Mines | Entered Exiles 1131 | -9/Exiles | Found Exiles lab destroyed 1139 | -9/Exiles | Discovered new exit (range 15) 1277 | -9/Exiles | Learned location of Zion (-6) 1642 | -9/Exiles | Core integrity fell below 20% 1881 | -9/Exiles | Discovered new exit (range 11) 1890 | -9/Exiles | Build established: Scavenger-Mutant 2205 | -9/Exiles | Entered Mines 2229 | -8/Mines | Destroyed by S-10 Pest with Light Assault Rifle Last Messages --------------- 01694_ as-91826 destroyed. 01696_ as-89736 destroyed. 01800_ Acquired Carbon-fiber Leg. 01881_ EXIT=FOUND 02069_ P-60 Hacker destroyed. 02075_ Acquired Lgt. Angular Momentum Engine. 02076_ Acquired 42 matter. 02078_ Acquired Imp. Heat Sink. 02082_ Acquired Shock Rifle. LOCATION=UNKNOWN GOAL=ESCAPE 02208_ S-10 Pest destroyed. 02209_ Sml. Laser destroyed. 02219_ S-10 Pest destroyed. 02222_ Carbon-fiber Leg destroyed. 02223_ Lgt. Angular Momentum Engine destroyed. 02225_ S-10 Pest IFF system glitched. 02227_ R-06 Scavenger collects Lgt. Assault Rifle. 02227_ S-10 Pest misfires. 02228_ Acquired 20 matter. Map ----- +----------------------------------------------------+ | ?????????????????????????????? | | ?????????????????????????????? | | ?????????????????????????????? | | ?????????????????????????????? | | ?????????????????????????????? | | ?????????????????????????????? | | ?????????????????????????????? | | ?????????????????????????????? | | ?????????????????????????????? | | ?????????????????????????????? | | ????????#???#????????????????? | | ?????????????????????????????? | | ????????????#????????????????? | | ?????????????????????????????? | | ??????????????#??????????????? | | ?????????????????????????????? | | ?????????????????????????????? | | ?????????????????????????????? | | ????###??????????????????????? | | ????# ??#???????????????????? | | ????# #? #???????????????????? | | ???## ## ####???#????????????? | | ??## $?????????????????? | | ??# s ???????????????????? | | ??# %sr #????????????????????? | | ??# @= #????????#???????????? | | ??# ##????????????????????? | | ??## ##?????????????????????? | | ???####??????????????????????? | | ??#????????????? ????????????? | | ?????????????????????????????? | | ?????????????????????????????? | | ?????????????????????????????? | | ?????????????????????????????? | | ???? ????????????? ??????????? | | ?????????????????????????????? | | ???????????? ????????????????? | | ?????????????????????????????? | | ??????? ?????????????????????? | | ?????????????????????????????? | | ?????????????????????????????? | | ?????????????????????????????? | | ???#?#???????????????????????? | | ?????#???????????????????????? | | ?????????????????????????????? | | ?????????????????????????????? | | ?????????????????????????????? | | ?????????????????????????????? | | | | | +----------------------------------------------------+ Best States ------------- Heat Dissipation 28 Energy Generation 18 Energy Capacity 265 Matter Stores 300 Matter Capacity 300 Sight Range 16 Terrain Scan Range 18 Terrain Scan Density 10 Armor Coverage 150 Evasion (%) 50 Targeting Accuracy 5 Recoil Reduction 2 Item Schematics ----------------- None Robot Schematics ------------------ None Fabricated ------------ Nothing Alien Tech Used ----------------- None Achievements -------------- None Challenges ------------ None Game ------ Seed PrecisionAntimissileFirepult Manual? 0 Play Time 00:23:09 Cumulative 204.3 hours Start 2021.08.06 @ 21:56:57 End 2021.08.06 @ 22:20:31 Sessions 1 Manual Loads 0 Difficulty Rogue Special Mode None Game No. 201 Rogue 201 Adventurer 0 Explorer 0 Win Type - Total 0 Types 0/0/0/0/0/0/0/0/0 Lore% 64 Gallery% 74 Achievement% 45 Wizard Run 0 Options --------- ASCII 0 Keyboard 0 Movement Numpad Keybinds 0 Fullscreen 1 Font 24/Smallcaps Map View 76x50 Tactical HUD 1 Map Filters NONE Filters NONE Steam 1 RUN: 09860956-edf1-4db4-9159-0452e222415f